fUSD/lending_fUSD_20250322
["ID","MTS","AMOUNT","RATE_DAILY","PERIOD"]
[356531060,1742625040896,-533.8,0.00046575,120]
[356531061,1742625040911,-1474.93,0.00046575,120]
[356531062,1742625040921,-1046.7,0.00046575,120]
[356531063,1742625040931,-4534.3139196,0.00046575,120]
[356531064,1742625040951,-47.5460804,0.00046575,120]
[356531065,1742625040960,-333.78857328,0.00046575,120]
[356531066,1742625040972,-358.1318956,0.00046575,120]
[356531067,1742625040989,-1179.32628687,0.00046575,120]
[356531068,1742625041001,-608.95324425,0.00046575,120]
[356531069,1742625041011,-834.69,0.00046575,120]
[356531070,1742625041021,-876.23,0.00046575,120]
[356531071,1742625041031,-1253.85,0.00046575,120]
[356531072,1742625041041,-910.97,0.00046575,120]
[356531073,1742625041051,-1298.97,0.00046575,120]
[356531074,1742625041060,-1112.44,0.00046575,120]
[356531075,1742625041070,-1081.0,0.00046575,120]
[356531077,1742625041080,-178.59675575,0.00046575,120]
[356531078,1742625041093,-281.55,0.00046575,120]
[356531081,1742625041367,-39.85324425,0.00046575,120]
[356531082,1742625041378,-535.26,0.00046575,120]
[356531083,1742625041389,-500.0,0.00046575,120]
[356531084,1742625041399,-454.0333147,0.00046575,120]
[356531085,1742625041410,-86.1766853,0.00046575,120]
[356531086,1742625041420,-500.0,0.00046575,120]
[356531087,1742625041429,-218.1433147,0.00046575,120]
[356531088,1742625041441,-642.3366853,0.00046575,120]
[356531089,1742625041451,-131.63753252,0.00046575,120]
[356531090,1742625041722,-368.36246748,0.00046575,120]
[356531091,1742625041732,-149.03542545,0.00046575,120]
[356531092,1742625041744,-1970.95457455,0.00046575,120]
[356531093,1742625041754,-1865.77,0.00046575,120]
[356531094,1742625041763,-2877.33,0.00046575,120]
[356531095,1742625041773,-226.30832057,0.00046575,120]
[356531096,1742625041782,-500.0,0.00046575,120]
[356531097,1742625041792,-43.26976556,0.00046575,120]
[356531098,1742625041845,-456.73023444,0.00046575,120]
[356531099,1742625041856,-118.91470292,0.00046575,120]
[356531100,1742625042005,-381.08529708,0.00046575,120]
[356531101,1742625042016,-546.32037374,0.00046575,120]
[356531102,1742625042026,-1239.79,0.00046575,120]
[356531103,1742625042036,-759.12565713,0.00046575,120]
[356531104,1742625042051,-431.045,0.00046045,2]
[356531105,1742625042060,-888.54954765,0.00046575,120]
[356531106,1742625042072,-300.86614897,0.00046575,120]
[356531109,1742625043598,-392.44864625,0.00046575,120]
[356531110,1742625043609,-204.84278148,0.00046575,120]
[356531111,1742625043683,-295.15721852,0.00046575,120]
[356531112,1742625043692,-1888.57,0.00046575,120]
[356531113,1742625043701,-1273.62,0.00046575,120]
[356531114,1742625043711,-7121.32,0.00046575,120]
[356531115,1742625043720,-500.0,0.00046575,120]
[356531116,1742625043729,-1965.1,0.00046575,120]
[356531117,1742625043739,-1781.72,0.00046575,120]
[356531118,1742625043748,-585.79,0.00046575,120]
[356531119,1742625043757,-701.73906812,0.00046575,120]
[356531120,1742625043768,-1154.36093188,0.00046575,120]
[356531121,1742625043777,-500.0,0.00046575,120]
[356531122,1742625043786,-1483.72,0.00046575,120]
[356531123,1742625043796,-266.65753713,0.00046575,120]
[356531124,1742625043805,-500.0,0.00046575,120]
[356531125,1742625043814,-803.09,0.00046575,120]
[356531126,1742625043823,-681.75,0.00046575,120]
[356531127,1742625043832,-2128.26721869,0.00046575,120]
[356531128,1742625043843,-477.10278131,0.00046575,120]
[356531129,1742625043852,-500.0,0.00046575,120]
[356531130,1742625043861,-2113.91,0.00046575,120]
[356531131,1742625043871,-489.63018177,0.00046575,120]
[356531132,1742625043882,-53.46981823,0.00046575,120]
[356531133,1742625043891,-1531.46,0.00046575,120]
[356531134,1742625043903,-217.90630377,0.00046575,120]
[356531135,1742625043914,-956.61369623,0.00046575,120]
[356531136,1742625043924,-430.22,0.00046575,120]
[356531137,1742625043933,-356.11096784,0.00046575,120]
[356531138,1742625043953,-143.88903216,0.00046575,120]
[356531139,1742625043962,-500.0,0.00046575,120]
[356531140,1742625043971,-500.0,0.00046575,120]
[356531141,1742625043982,-1379.83,0.00046575,120]
[356531142,1742625043991,-507.72,0.00046575,120]
[356531143,1742625044000,-2950.5,0.00046575,120]
[356531144,1742625044009,-500.0,0.00046575,120]
[356531145,1742625044019,-1841.75,0.00046575,7]
[356531146,1742625044029,-1071.64,0.00046575,120]
[356531147,1742625044039,-602.62,0.00046575,120]
[356531148,1742625044049,-500.0,0.00046575,120]
[356531149,1742625044059,-1748.78,0.00046575,120]
[356531150,1742625044068,-599.66,0.00046575,120]
[356531151,1742625044078,-980.93,0.00046575,120]
[356531152,1742625044088,-500.0,0.00046575,120]
[356531153,1742625044098,-868.72676784,0.00046575,120]
[356531154,1742625044110,-606.34355227,0.00046575,120]
[356531155,1742625044122,-180.51967989,0.00046575,120]
[356531156,1742625044131,-319.48032011,0.00046575,120]
[356531161,1742625045168,-180.51967989,0.00046575,120]
[356531162,1742625045177,-613.10040118,0.00046575,120]
[356531164,1742625046369,-1126.24959882,0.00046575,120]
[356531165,1742625046379,-573.74228972,0.00046575,120]
[356531166,1742625046460,-110.73771028,0.00046575,120]
[356531167,1742625046470,-920.69,0.00046575,120]
[356531168,1742625046479,-1261.29314972,0.00046575,120]
[356531169,1742625046630,-167.76685028,0.00046575,120]
[356531170,1742625046639,-352.69115246,0.00046575,120]
[356531171,1742625046652,-281.10747803,0.00046575,120]
[356531172,1742625064078,1004.4,0.000145,2]
[356531224,1742626185795,356.5,0.00031372,30]
[356531226,1742626231757,-164.09,0.00026849,2]
[356531227,1742626231767,-350.0,0.00028192,2]
[356531228,1742626231777,-150.0,0.00029534,2]
[356531229,1742626231787,-150.0,0.00029534,2]
[356531230,1742626231798,-350.0,0.00029534,2]
[356531231,1742626231808,-350.0,0.00034575,2]
[356531232,1742626231818,-251.70298604,0.00035477,2]
[356531233,1742626231828,-3352.20701387,0.000363,3]
[356531234,1742626231839,-444.79298613,0.000363,3]
[356531235,1742626231848,-1124.48384387,0.000374,5]
[356531236,1742626231860,-4426.51615613,0.000374,5]
[356531237,1742626231870,-21003.48384387,0.00039781,7]
[356531238,1742626231881,-6099.9999999,0.00039781,7]
[356531239,1742626231892,-5880.0,0.00039781,7]
[356531240,1742626231903,-3550.000005,0.00039781,7]
[356531241,1742626231915,-1300.0,0.00039781,7]
[356531242,1742626231926,-471.0656486,0.00039781,7]
[356531243,1742626231938,-86695.45050263,0.00039781,7]
[356531244,1742626231947,-296.19,0.00043613,2]
[356531245,1742626231957,-1000.0,0.000438,7]
[356531246,1742626231966,-1000.0,0.000448,7]
[356531247,1742626231976,-1500.0,0.00045053,2]
[356531248,1742626231985,-152.31,0.00045163,2]
[356531249,1742626231994,-170.51,0.00045189,2]
[356531250,1742626232004,-300.0,0.00045193,2]
[356531252,1742626232013,-752.61,0.00045277,120]
[356531253,1742626232023,-150.67,0.00045339,2]
[356531254,1742626232032,-644.3683,0.00045365,2]
[356531255,1742626232041,-285.06,0.00045412,2]
[356531256,1742626232051,-191.1296,0.00045443,4]
[356531257,1742626232060,-3286.08,0.00045465,2]
[356531258,1742626232070,-414.842,0.00045532,7]
[356531259,1742626232080,-1000.0,0.00045543,2]
[356531260,1742626232089,-311.57,0.00045584,2]
[356531261,1742626232099,-150.67,0.00045598,2]
[356531262,1742626232108,-187.44,0.00045603,2]
[356531263,1742626232118,-23900.0,0.00045632,2]
[356531264,1742626232127,-150.67,0.00045857,2]
[356531265,1742626232137,-296.19,0.00045877,2]
[356531266,1742626232146,-212.86100113,0.000459,120]
[356531267,1742626232155,-150.99,0.00046047,2]
[356531268,1742626232165,-3393.789,0.00046047,2]
[356531269,1742626232174,-978.107,0.00046047,2]
[356531270,1742626232183,-300.0,0.00046047,4]
[356531271,1742626232193,-150.67,0.00046116,2]
[356531272,1742626232203,-12788.86345344,0.00046374,2]
[356531273,1742626232212,-152.67997133,0.00046374,2]
[356531274,1742626232221,-232.84391849,0.00046374,120]
[356531275,1742626232231,-317.96127505,0.00046374,120]
[356531276,1742626232239,-150.67,0.00046375,2]
[356531277,1742626232248,-36441.9985,0.00046375,2]
[356531278,1742626232257,-150.37421475,0.00046475,15]
[356531279,1742626232266,-256.46653954,0.00046475,120]
[356531280,1742626232275,-156.51206173,0.00046475,15]
[356531281,1742626232284,-529.33595414,0.00046475,18]
[356531282,1742626232293,-10989.58332541,0.000465,120]
[356531283,1742626232302,-256.46653952,0.00046547,120]
[356531284,1742626232311,-150.0,0.00046548,30]
[356531285,1742626232320,-150.0,0.00046548,30]
[356531286,1742626232328,-150.0,0.00046548,30]
[356531287,1742626232337,-1196.94,0.00046549,31]
[356531288,1742626232345,-1000.0,0.00046564,120]
[356531289,1742626232353,-1020.01294584,0.00046574,60]
[356531290,1742626232361,-1000.0,0.00046574,120]
[356531291,1742626232369,-1000.0,0.00046574,120]
[356531292,1742626232377,-290.94,0.00046574,120]
[356531293,1742626232385,-900.0,0.00046575,17]
[356531294,1742626232393,-900.0,0.00046575,17]
[356531295,1742626232401,-900.0,0.00046575,17]
[356531296,1742626232409,-900.0,0.00046575,17]
[356531297,1742626232417,-900.0,0.00046575,17]
[356531298,1742626232425,-900.0,0.00046575,17]
[356531299,1742626232433,-900.0,0.00046575,17]
[356531300,1742626232442,-666.73864787,0.00046575,17]
[356531301,1742626232451,-500.0,0.00046575,120]
[356531302,1742626232512,-500.0,0.00046575,120]
[356531303,1742626232520,-1281.507944,0.00046575,120]
[356531304,1742626232529,-500.0,0.00046575,120]
[356531305,1742626232538,-857.21,0.00046575,120]
[356531306,1742626232548,-1034.46,0.00046575,120]
[356531307,1742626232557,-500.0,0.00046575,120]
[356531308,1742626232566,-500.0,0.00046575,120]
[356531309,1742626232575,-1039.274632,0.00046575,120]
[356531310,1742626232584,-548.93,0.00046575,120]
[356531311,1742626232593,-500.0,0.00046575,120]
[356531312,1742626232601,-500.0,0.00046575,120]
[356531313,1742626232610,-159.505277,0.00046575,120]
[356531314,1742626232619,-795.21,0.00046575,120]
[356531315,1742626232628,-500.0,0.00046575,20]
[356531316,1742626232637,-158.830351,0.00046575,120]
[356531317,1742626232646,-500.0,0.00046575,120]
[356531318,1742626232655,-500.0,0.00046575,120]
[356531319,1742626232665,-500.0,0.00046575,120]
[356531320,1742626232673,-500.0,0.00046575,120]
[356531321,1742626232682,-500.0,0.00046575,120]
[356531322,1742626232691,-500.0,0.00046575,120]
[356531323,1742626232700,-500.0,0.00046575,120]
[356531324,1742626232710,-500.0,0.00046575,120]
[356531325,1742626232719,-500.0,0.00046575,120]
[356531326,1742626232729,-500.0,0.00046575,120]
[356531327,1742626232738,-500.0,0.00046575,120]
[356531328,1742626232747,-1360.67,0.00046575,120]
[356531329,1742626232755,-500.0,0.00046575,120]
[356531330,1742626232764,-642.84,0.00046575,120]
[356531331,1742626232773,-572.15078549,0.00046575,120]
[356531332,1742626232782,-562.04,0.00046575,120]
[356531333,1742626232791,-500.0,0.00046575,120]
[356531334,1742626232799,-500.0,0.00046575,120]
[356531335,1742626232809,-620.37,0.00046575,120]
[356531336,1742626232818,-500.0,0.00046575,120]
[356531337,1742626232827,-552.63,0.00046575,120]
[356531338,1742626232837,-500.0,0.00046575,120]
[356531339,1742626232845,-1318.18,0.00046575,120]
[356531340,1742626232854,-552.79,0.00046575,120]
[356531341,1742626232863,-500.0,0.00046575,120]
[356531342,1742626232872,-500.0,0.00046575,120]
[356531343,1742626232881,-500.0,0.00046575,120]
[356531344,1742626232890,-1114.31,0.00046575,120]
[356531345,1742626232898,-500.0,0.00046575,120]
[356531346,1742626232907,-610.18938145,0.00046575,120]
[356531347,1742626232916,-500.0,0.00046575,120]
[356531348,1742626232925,-500.0,0.00046575,120]
[356531349,1742626232934,-500.0,0.00046575,120]
[356531350,1742626232942,-500.0,0.00046575,120]
[356531351,1742626232951,-500.0,0.00046575,120]
[356531352,1742626232960,-779.86,0.00046575,120]
[356531353,1742626232969,-528.83,0.00046575,120]
[356531354,1742626232977,-500.0,0.00046575,120]
[356531355,1742626232986,-500.0,0.00046575,120]
[356531356,1742626232995,-500.0,0.00046575,120]
[356531357,1742626233003,-431.78313222,0.00046575,120]
[356531358,1742626233013,-500.0,0.00046575,120]
[356531359,1742626233021,-179.49732159,0.00046575,120]
[356531360,1742626233030,-500.0,0.00046575,120]
[356531361,1742626233039,-653.77,0.00046575,120]
[356531362,1742626233048,-1237.38,0.00046575,120]
[356531363,1742626233057,-500.0,0.00046575,120]
[356531364,1742626233065,-500.0,0.00046575,120]
[356531365,1742626233074,-692.33,0.00046575,120]
[356531366,1742626233083,-500.0,0.00046575,120]
[356531367,1742626233092,-500.0,0.00046575,120]
[356531368,1742626233101,-500.0,0.00046575,120]
[356531369,1742626233111,-500.0,0.00046575,120]
[356531370,1742626233120,-500.0,0.00046575,120]
[356531371,1742626233130,-187.88268488,0.00046575,120]
[356531372,1742626233139,-1007.4,0.00046575,120]
[356531373,1742626233149,-500.0,0.00046575,120]
[356531374,1742626233157,-500.0,0.00046575,120]
[356531375,1742626233166,-500.0,0.00046575,120]
[356531376,1742626233175,-233.89994735,0.00046575,120]
[356531377,1742626233184,-500.0,0.00046575,120]
[356531378,1742626233193,-500.0,0.00046575,120]
[356531379,1742626233202,-500.0,0.00046575,120]
[356531380,1742626233211,-500.0,0.00046575,120]
[356531381,1742626233220,-500.0,0.00046575,120]
[356531382,1742626233228,-982.65,0.00046575,120]
[356531383,1742626233237,-500.0,0.00046575,120]
[356531384,1742626233246,-705.49,0.00046575,120]
[356531385,1742626233255,-500.0,0.00046575,120]
[356531386,1742626233264,-599.35,0.00046575,120]
[356531387,1742626233273,-500.0,0.00046575,120]
[356531388,1742626233283,-500.0,0.00046575,120]
[356531389,1742626233293,-500.0,0.00046575,60]
[356531390,1742626233302,-549.58472365,0.00046575,120]
[356531391,1742626233312,-500.0,0.00046575,120]
[356531392,1742626233322,-500.0,0.00046575,120]
[356531393,1742626233331,-890.92,0.00046575,120]
[356531394,1742626233341,-500.0,0.00046575,2]
[356531395,1742626233350,-500.0,0.00046575,120]
[356531396,1742626233359,-500.0,0.00046575,120]
[356531397,1742626233369,-601.43,0.00046575,120]
[356531398,1742626233378,-500.0,0.00046575,120]
[356531399,1742626233387,-500.0,0.00046575,120]
[356531400,1742626233396,-644.72,0.00046575,120]
[356531401,1742626233405,-506.69,0.00046575,120]
[356531402,1742626233414,-500.0,0.00046575,120]
[356531403,1742626233423,-500.0,0.00046575,120]
[356531404,1742626233432,-500.0,0.00046575,120]
[356531405,1742626233441,-1304.01,0.00046575,120]
[356531406,1742626233450,-500.0,0.00046575,120]
[356531407,1742626233459,-500.0,0.00046575,120]
[356531408,1742626233471,-500.0,0.00046575,120]
[356531409,1742626233480,-500.0,0.00046575,120]
[356531410,1742626233489,-783.11,0.00046575,120]
[356531411,1742626233498,-500.0,0.00046575,120]
[356531412,1742626233508,-500.0,0.00046575,120]
[356531413,1742626233517,-796.03,0.00046575,120]
[356531414,1742626233527,-642.84,0.00046575,120]
[356531415,1742626233536,-500.0,0.00046575,120]
[356531416,1742626233545,-500.0,0.00046575,120]
[356531417,1742626233554,-809.69,0.00046575,2]
[356531418,1742626233563,-597.94,0.00046575,120]
[356531419,1742626233572,-790.41,0.00046575,120]
[356531420,1742626233582,-862.06,0.00046575,120]
[356531421,1742626233591,-500.0,0.00046575,120]
[356531422,1742626233600,-2007.99,0.00046575,120]
[356531423,1742626233609,-500.0,0.00046575,120]
[356531424,1742626233619,-500.0,0.00046575,120]
[356531425,1742626233628,-500.0,0.00046575,120]
[356531426,1742626233637,-500.0,0.00046575,120]
[356531427,1742626233647,-944.75,0.00046575,120]
[356531428,1742626233657,-683.11,0.00046575,120]
[356531429,1742626233666,-707.3,0.00046575,120]
[356531430,1742626233676,-500.0,0.00046575,120]
[356531431,1742626233686,-500.0,0.00046575,120]
[356531432,1742626233696,-500.0,0.00046575,120]
[356531433,1742626233705,-500.0,0.00046575,120]
[356531434,1742626233715,-500.0,0.00046575,120]
[356531435,1742626233724,-500.0,0.00046575,120]
[356531436,1742626233733,-2157.88,0.00046575,120]
[356531437,1742626233743,-500.0,0.00046575,120]
[356531438,1742626233752,-500.0,0.00046575,120]
[356531439,1742626233761,-915.67,0.00046575,120]
[356531440,1742626233771,-659.98,0.00046575,120]
[356531441,1742626233780,-500.0,0.00046575,120]
[356531442,1742626233789,-500.0,0.00046575,120]
[356531443,1742626233799,-1002.14,0.00046575,120]
[356531444,1742626233808,-500.0,0.00046575,120]
[356531445,1742626233818,-500.0,0.00046575,120]
[356531446,1742626233828,-592.46,0.00046575,120]
[356531447,1742626233837,-593.17230941,0.00046575,120]
[356531448,1742626233847,-829.99,0.00046575,120]
[356531449,1742626233857,-500.0,0.00046575,120]
[356531450,1742626233866,-1609.93,0.00046575,120]
[356531451,1742626233875,-500.0,0.00046575,120]
[356531452,1742626233885,-500.0,0.00046575,120]
[356531453,1742626233894,-500.0,0.00046575,120]
[356531454,1742626233904,-500.0,0.00046575,120]
[356531455,1742626233914,-500.0,0.00046575,120]
[356531456,1742626233923,-500.0,0.00046575,120]
[356531457,1742626233933,-500.0,0.00046575,120]
[356531458,1742626233942,-2062.88,0.00046575,120]
[356531459,1742626233951,-649.91,0.00046575,120]
[356531460,1742626233960,-689.21,0.00046575,120]
[356531461,1742626233970,-500.0,0.00046575,120]
[356531462,1742626233979,-500.0,0.00046575,120]
[356531463,1742626233989,-500.0,0.00046575,120]
[356531464,1742626233998,-1066.09,0.00046575,120]
[356531465,1742626234008,-500.0,0.00046575,120]
[356531466,1742626234017,-500.0,0.00046575,120]
[356531467,1742626234027,-500.0,0.00046575,120]
[356531468,1742626234036,-500.0,0.00046575,120]
[356531469,1742626234046,-500.0,0.00046575,120]
[356531470,1742626234055,-198.50007803,0.00046575,120]
[356531471,1742626234066,-500.0,0.00046575,120]
[356531472,1742626234076,-500.0,0.00046575,120]
[356531473,1742626234086,-168.57829338,0.00046575,120]
[356531474,1742626234095,-500.0,0.00046575,120]
[356531475,1742626234105,-768.08,0.00046575,120]
[356531476,1742626234115,-500.0,0.00046575,120]
[356531477,1742626234125,-1456.11,0.00046575,7]
[356531478,1742626234135,-500.0,0.00046575,120]
[356531479,1742626234145,-500.0,0.00046575,30]
[356531480,1742626234154,-558.60847959,0.00046575,120]
[356531481,1742626234163,-500.0,0.00046575,120]
[356531482,1742626234173,-500.0,0.00046575,120]
[356531483,1742626234182,-500.0,0.00046575,120]
[356531484,1742626234192,-2043.78,0.00046575,120]
[356531485,1742626234201,-500.0,0.00046575,120]
[356531486,1742626234210,-500.0,0.00046575,120]
[356531487,1742626234219,-891.4,0.00046575,120]
[356531488,1742626234229,-500.0,0.00046575,120]
[356531489,1742626234239,-544.26,0.00046575,120]
[356531490,1742626234248,-925.91,0.00046575,120]
[356531491,1742626234258,-500.0,0.00046575,120]
[356531492,1742626234267,-709.45,0.00046575,120]
[356531493,1742626234276,-500.0,0.00046575,120]
[356531494,1742626234285,-500.0,0.00046575,120]
[356531495,1742626234295,-500.0,0.00046575,120]
[356531496,1742626234304,-500.0,0.00046575,120]
[356531497,1742626234313,-500.0,0.00046575,30]
[356531498,1742626234323,-500.0,0.00046575,120]
[356531499,1742626234332,-500.0,0.00046575,120]
[356531500,1742626234341,-2642.39,0.00046575,120]
[356531501,1742626234351,-1007.67,0.00046575,120]
[356531502,1742626234361,-500.0,0.00046575,120]
[356531503,1742626234370,-500.0,0.00046575,120]
[356531504,1742626234379,-500.0,0.00046575,120]
[356531505,1742626234388,-500.0,0.00046575,120]
[356531506,1742626234399,-500.0,0.00046575,120]
[356531507,1742626234408,-500.0,0.00046575,120]
[356531508,1742626234418,-1064.89,0.00046575,120]
[356531509,1742626234427,-942.27,0.00046575,120]
[356531510,1742626234436,-1160.32,0.00046575,120]
[356531511,1742626234446,-500.0,0.00046575,120]
[356531512,1742626234455,-500.0,0.00046575,120]
[356531513,1742626234467,-577.51,0.00046575,120]
[356531514,1742626234477,-644.77,0.00046575,120]
[356531515,1742626234486,-1075.51,0.00046575,120]
[356531516,1742626234495,-561.88,0.00046575,120]
[356531517,1742626234504,-500.0,0.00046575,120]
[356531518,1742626234513,-569.56,0.00046575,120]
[356531519,1742626234523,-176.3033342,0.00046575,120]
[356531520,1742626234532,-500.0,0.00046575,120]
[356531521,1742626234542,-500.0,0.00046575,120]
[356531522,1742626234551,-500.0,0.00046575,120]
[356531523,1742626234561,-537.77342076,0.00046575,120]
[356531524,1742626234570,-500.0,0.00046575,120]
[356531525,1742626234580,-365.19337631,0.00046575,120]
[356531526,1742626234589,-500.0,0.00046575,120]
[356531527,1742626234598,-895.61,0.00046575,120]
[356531528,1742626234607,-500.0,0.00046575,120]
[356531529,1742626234616,-865.66,0.00046575,120]
[356531530,1742626234625,-500.0,0.00046575,120]
[356531531,1742626234635,-500.0,0.00046575,120]
[356531532,1742626234646,-791.21,0.00046575,120]
[356531533,1742626234655,-500.0,0.00046575,120]
[356531534,1742626234665,-500.0,0.00046575,120]
[356531535,1742626234674,-500.0,0.00046575,120]
[356531536,1742626234683,-553.43,0.00046575,120]
[356531537,1742626234692,-500.0,0.00046575,120]
[356531538,1742626234701,-539.86,0.00046575,120]
[356531539,1742626234710,-151.0,0.00046575,14]
[356531540,1742626234719,-188.65014779,0.00046575,120]
[356531541,1742626234729,-956.04,0.00046575,120]
[356531542,1742626234737,-500.0,0.00046575,120]
[356531543,1742626234746,-500.0,0.00046575,120]
[356531544,1742626234755,-512.96,0.00046575,120]
[356531545,1742626234764,-1315.43,0.00046575,120]
[356531546,1742626234773,-500.0,0.00046575,120]
[356531547,1742626234782,-803.02,0.00046575,120]
[356531548,1742626234792,-761.27,0.00046575,120]
[356531549,1742626234801,-500.0,0.00046575,120]
[356531550,1742626234811,-202.12619275,0.00046575,120]
[356531551,1742626234820,-312.26061558,0.00046575,120]
[356531552,1742626234829,-500.0,0.00046575,120]
[356531553,1742626234838,-500.0,0.00046575,120]
[356531554,1742626234847,-673.38,0.00046575,120]
[356531555,1742626234856,-500.0,0.00046575,120]
[356531556,1742626234865,-500.0,0.00046575,120]
[356531557,1742626234874,-500.0,0.00046575,120]
[356531558,1742626234883,-500.0,0.00046575,120]
[356531559,1742626234892,-1377.7,0.00046575,120]
[356531560,1742626234901,-500.0,0.00046575,120]
[356531561,1742626234911,-806.3,0.00046575,120]
[356531562,1742626234920,-500.0,0.00046575,120]
[356531563,1742626234929,-500.0,0.00046575,120]
[356531564,1742626234938,-500.0,0.00046575,120]
[356531565,1742626234947,-500.0,0.00046575,120]
[356531566,1742626234956,-905.82,0.00046575,120]
[356531567,1742626234965,-500.0,0.00046575,120]
[356531568,1742626234974,-567.9,0.00046575,120]
[356531569,1742626234983,-578.97,0.00046575,120]
[356531570,1742626234992,-941.3,0.00046575,120]
[356531571,1742626235001,-412.29,0.00046575,120]
[356531572,1742626235010,-818.81,0.00046575,120]
[356531573,1742626235025,-1806.21,0.00046575,120]
[356531574,1742626235039,-500.0,0.00046575,120]
[356531575,1742626235049,-500.0,0.00046575,120]
[356531576,1742626235061,-1303.14,0.00046575,120]
[356531577,1742626235071,-927.86,0.00046575,120]
[356531578,1742626235080,-1230.55,0.00046575,120]
[356531579,1742626235089,-500.0,0.00046575,120]
[356531580,1742626235098,-566.51,0.00046575,120]
[356531581,1742626235107,-500.0,0.00046575,120]
[356531582,1742626235116,-739.99,0.00046575,120]
[356531583,1742626235125,-580.4,0.00046575,120]
[356531584,1742626235134,-525.85,0.00046575,120]
[356531585,1742626235143,-597.48,0.00046575,120]
[356531586,1742626235152,-691.75,0.00046575,120]
[356531587,1742626235161,-724.1,0.00046575,120]
[356531588,1742626235171,-1395.14,0.00046575,120]
[356531589,1742626235179,-500.0,0.00046575,120]
[356531590,1742626235188,-500.0,0.00046575,120]
[356531591,1742626235197,-500.0,0.00046575,120]
[356531592,1742626235207,-500.0,0.00046575,120]
[356531593,1742626235216,-586.86,0.00046575,120]
[356531594,1742626235225,-1459.19,0.00046575,120]
[356531595,1742626235235,-827.07,0.00046575,120]
[356531596,1742626235243,-530.55,0.00046575,120]
[356531597,1742626235252,-1091.46,0.00046575,120]
[356531598,1742626235261,-942.81,0.00046575,120]
[356531599,1742626235271,-500.0,0.00046575,120]
[356531600,1742626235279,-951.85,0.00046575,120]
[356531601,1742626235289,-500.0,0.00046575,120]
[356531602,1742626235298,-500.0,0.00046575,120]
[356531603,1742626235307,-602.72,0.00046575,120]
[356531604,1742626235316,-500.0,0.00046575,120]
[356531605,1742626235325,-791.43,0.00046575,120]
[356531606,1742626235335,-814.76,0.00046575,120]
[356531607,1742626235344,-741.88,0.00046575,120]
[356531608,1742626235353,-500.0,0.00046575,120]
[356531609,1742626235362,-500.0,0.00046575,120]
[356531610,1742626235371,-852.76,0.00046575,120]
[356531611,1742626235381,-151.0,0.00046575,14]
[356531612,1742626235390,-500.0,0.00046575,120]
[356531613,1742626235399,-681.19,0.00046575,120]
[356531614,1742626235409,-500.0,0.00046575,120]
[356531615,1742626235418,-500.0,0.00046575,120]
[356531616,1742626235427,-500.0,0.00046575,120]
[356531617,1742626235437,-585.55,0.00046575,120]
[356531618,1742626235446,-2877.74,0.00046575,120]
[356531619,1742626235456,-500.0,0.00046575,120]
[356531620,1742626235467,-628.71,0.00046575,120]
[356531621,1742626235476,-871.63,0.00046575,120]
[356531622,1742626235487,-500.0,0.00046575,120]